[Event "45th FIDE Womens Olympiad 2024"]
[Site "Budapest"]
[Date "2024.09.15"]
[Round "5.79"]
[White "Exler, Veronika"]
[Black "Bakalarz, Grazyna"]
[Result "1-0"]
[ECO "E06"]
[WhiteElo "2176"]
[BlackElo "1928"]
[Annotator "TA"]
[PlyCount "71"]
[EventDate "2024.09.05"]
[EventType "team-tourn"]
[EventCountry "HUN"]
[SourceTitle "playchess.com"]
[Source "ChessBase"]
[SourceQuality "1"]
[WhiteTeam "Austria"]
[BlackTeam "Luxembourg"]
[WhiteTeamCountry "AUT"]
[BlackTeamCountry "LUX"]
[TimeControl "40/5400+30:1800+30"]

{[%evp 11,71,0,37,20,29,23,30,23,18,-10,-3,-35,-18,-22,-15,-14,0,0,0,0,0,0,0,0,0,-1,0,-2,0,0,0,0,0,0,0,0,0,0,16,6,42,13,28,0,0,0,37,24,58,38,78,68,102,107,123,110,127,110,117,81,235,226]} 1. d4 Nf6 2. c4 e6 3. Nf3 d5 4. g3 Be7 5. Bg2 O-O 6. Qc2 Nc6 7. O-O Nb4 8. Qb3 c5 9. cxd5 {White has an edge.} Qxd5 10. Qxd5 Nfxd5 11. Na3 {Prevents Nc2} cxd4 12. Nxd4 e5 13. Ndc2 Nxc2 14. Nxc2 Be6 15. Ne3 Rfd8 16. Nxd5 Bxd5 17. Be3 b6 18. Rfd1 Bxg2 19. Kxg2 f6 20. a4 Kf7 21. Rxd8 Bxd8 $11 {[%mdl 4096] Endgame. KRB-KRB} 22. Rc1 Ke6 23. f4 exf4 24. gxf4 h5 25. Kf3 g6 26. Bd4 Kd5 27. Rd1 Ke6 28. Rc1 Kd5 29. Bf2 Be7 30. e4+ Ke6 31. Rc7 {[%cal Of4f5]} Bf8 {[#]} 32. Rc6+ $1 Kf7 33. Bd4 Be7 34. Rc7 Ke6 35. Bc3 {[%cal Of4f5] White is much more active.} a5 $2 {[#]} (35... f5 $16 {might work better.}) 36. Rc6+ {Weighted Error Value: White=0.10 (very precise) /Black=0.15 (very precise) .  Mistake:       	---       	Black=1      Inaccurate:     	White=5     	Black=4      OK:         	White=5     	Black=13     Best:        	White=1     	---        Strong:       	White=1     	---} 1-0

[Event "45th FIDE Womens Olympiad 2024"]
[Site "Budapest"]
[Date "2024.09.15"]
[Round "5.80"]
[White "Lyon, Hannah Jane"]
[Black "Schloffer, Jasmin-Denise"]
[Result "0-1"]
[ECO "D30"]
[WhiteElo "1797"]
[BlackElo "2168"]
[Annotator "TA"]
[PlyCount "66"]
[EventDate "2024.09.05"]
[EventType "team-tourn"]
[EventCountry "HUN"]
[SourceTitle "playchess.com"]
[Source "ChessBase"]
[SourceQuality "1"]
[WhiteTeam "Luxembourg"]
[BlackTeam "Austria"]
[WhiteTeamCountry "LUX"]
[BlackTeamCountry "AUT"]
[TimeControl "40/5400+30:1800+30"]

{[%evp 13,66,20,19,12,25,10,17,0,6,15,18,0,0,0,0,-15,-7,-36,55,-7,-1,-2,-13,-4,0,-44,-31,-91,-85,-108,-41,-102,-111,-162,-172,-290,-224,-486,-477,-489,-470,-495,-487,-493,-495,-696,-713,-854,-837,-792,-757,-29990,-29991,-29997,-29992]} 1. d4 Nf6 2. c4 e6 3. g3 d5 4. Nf3 Bb4+ 5. Bd2 Bd6 6. Bg2 O-O 7. Qc2 c6 8. O-O Ne4 9. Rd1 Nd7 10. a3 {The position is equal.} a5 11. Nc3 f5 12. Rab1 Qe7 13. c5 Bc7 14. b4 e5 15. b5 exd4 (15... Nxc3 $15 16. Qxc3 e4) 16. Nxe4 ({White should play} 16. Nxd4 $14 Ndf6 17. bxc6 bxc6 18. Nxe4 (18. Nxc6 Qxc5 $14) 18... Nxe4 19. Bf4 (19. Nxc6 $2 Qf6 $17) 19... Bxf4 20. gxf4) 16... fxe4 $11 17. Nxd4 Qf6 18. Be1 Be5 19. e3 Bc7 {Hoping for ...Ne5.} 20. Bc3 (20. f4 $15) 20... Ne5 $17 (20... Nxc5 21. bxc6 (21. Nxc6 Qe6 $16) 21... bxc6 22. Nb5 $16) 21. Qa2 {[#]} Kh8 (21... Ng4 $1 $17 22. Rd2 Qh6) 22. Rf1 (22. b6 $15 Bb8 23. Nxc6 bxc6 (23... Qxc6 24. Qxd5 Qxd5 25. Rxd5 $16) 24. b7 Bxb7 25. Bxe5 Bxe5 26. Rxb7) 22... Qh6 23. Qd2 {[#]} (23. Qb2 $17) 23... Bh3 $1 $19 {And now ...Bxg2 would win.} 24. f3 (24. Qd1 $142) 24... Nc4 25. Qe2 (25. Qc1 {is the only way for White.} Bxg2 (25... Qxe3+ $2 26. Qxe3 Nxe3 27. Bxh3 $18) 26. Kxg2 exf3+ (26... Qxe3 27. f4 $17) (26... Nxe3+ $2 27. Kg1 $19) 27. Nxf3 Nxe3+ (27... Qxe3 28. bxc6 bxc6 29. Rb7 $11) 28. Kg1) 25... Bxg2 ({Stronger than} 25... Nxe3 26. Bxh3 Nxf1 27. Bxf1 $14) ({Weaker is} 25... Nxa3 26. Rbe1 Nxb5 27. Nxb5 cxb5 28. fxe4 $17) 26. Kxg2 Nxe3+ ({Not} 26... Qxe3 27. Qxe3 Nxe3+ 28. Kf2 Nxf1 29. Kxf1 $19) 27. Kg1 Nxf1 28. Rxf1 exf3 29. Qe7 (29. Nxf3 $142 Rae8 30. Qc2) 29... Rfe8 30. Qxc7 Qe3+ 31. Kh1 Qxc3 32. Nf5 Re1 {[%cal Re1f1]} 33. Kg1 Rae8 {Weighted Error Value: White=0.73/Black=0.11 (very precise) .  Mistake:       	White=7     	Black=2      Inaccurate:     	White=2     	---        OK:         	White=3     	Black=14     Best:        	White=1     	Black=1} 0-1

[Event "45th FIDE Womens Olympiad 2024"]
[Site "Budapest"]
[Date "2024.09.15"]
[Round "5.81"]
[White "Mihok-Juhasz, Barbara"]
[Black "Ortiz Verdezoto, Anahi"]
[Result "1/2-1/2"]
[ECO "C24"]
[WhiteElo "2193"]
[BlackElo "2229"]
[Annotator "TA"]
[PlyCount "89"]
[EventDate "2024.09.05"]
[EventType "team-tourn"]
[EventCountry "HUN"]
[SourceTitle "playchess.com"]
[Source "ChessBase"]
[SourceQuality "1"]
[WhiteTeam "Hungary B"]
[BlackTeam "Ecuador"]
[WhiteTeamCountry "HUN"]
[BlackTeamCountry "ECU"]
[TimeControl "40/5400+30:1800+30"]

{[%evp 9,89,-17,33,14,20,21,22,18,32,23,29,24,20,0,0,-6,0,0,0,-3,0,0,0,0,0,0,0,0,0,0,0,0,0,0,41,-22,0,-11,0,-25,0,0,0,0,0,-14,-4,-10,0,-5,0,-4,8,0,0,0,0,0,0,0,0,-19,-9,-8,0,-12,0,0,0,-40,12,11,19,0,0,0,0,0,0,0,0,0]} 1. e4 e5 2. Nc3 Nf6 3. Bc4 d6 4. f4 c6 5. d3 Be7 ({Black should play} 5... exf4 $11 6. Bxf4 d5 7. exd5 cxd5) 6. Nf3 exf4 7. Bxf4 O-O 8. Bb3 Be6 9. O-O d5 10. Qe1 Nbd7 11. d4 dxe4 12. Nxe4 {[#] Hoping for Bxe6.} Bxb3 13. axb3 Re8 14. Nxf6+ Bxf6 15. Qb4 Re4 16. Bg3 Nb6 {[%cal Rf6d4,Bd7b6,Bb6d5,Bd5e3][%mdl 32]} 17. c3 {[%cal Bc2c3,Bc3c4][%mdl 32]} Re2 18. Rf2 Re7 19. Qa5 Qe8 20. h3 Nd5 21. c4 Ne3 22. Re1 (22. Be5 $14) 22... b6 (22... Nxc4 $5 23. bxc4 Rxe1+ 24. Nxe1 (24. Qxe1 Qxe1+ 25. Nxe1 Bxd4 $17) 24... Bxd4 $15) 23. Qd2 Nf5 24. Be5 Bxe5 25. Nxe5 Nd6 26. Rfe2 {[#] Threatens to win with d5.} f6 27. Nf3 Rxe2 28. Rxe2 Qd7 29. Qf4 Nf5 30. g4 Ne7 31. Kf2 a5 32. Qe4 Ra7 33. Kg2 h6 34. Nh4 b5 35. Nf3 bxc4 36. bxc4 Rb7 37. Kf2 Qd6 38. Kg2 Kf7 39. Rf2 Rb3 (39... Qe6 $15 40. Qe5 a4 (40... fxe5 41. Ng5+ Kg8 42. Nxe6 $11) (40... Qxc4 41. Qxa5 Kg6 42. g5 $15) 41. Qxe6+ Kxe6) 40. Ne5+ $11 {The position is equal.} Kg8 41. Nf3 Qb4 42. Qe6+ Kh7 43. Qe4+ Kg8 44. Qe6+ Kh7 45. Qe4+ {A balanced but interesting game.   Weighted Error Value: White=0.09 (flawless) /Black=0.08 (flawless) .  Mistake:       	White=1     	Black=1      Inaccurate:     	White=1     	Black=1      OK:         	White=13    	Black=14} 1/2-1/2

[Event "45th FIDE Womens Olympiad 2024"]
[Site "Budapest"]
[Date "2024.09.15"]
[Round "5.82"]
[White "Wagenschuetz, Evelyn"]
[Black "Karacsonyi, Kata"]
[Result "0-1"]
[ECO "B45"]
[WhiteElo "2036"]
[BlackElo "2233"]
[Annotator "RC"]
[PlyCount "94"]
[EventDate "2024.09.05"]
[EventType "team-tourn"]
[EventCountry "HUN"]
[SourceTitle "playchess.com"]
[Source "ChessBase"]
[SourceQuality "1"]
[WhiteTeam "Ecuador"]
[BlackTeam "Hungary B"]
[WhiteTeamCountry "ECU"]
[BlackTeamCountry "HUN"]
[TimeControl "40/5400+30:1800+30"]

1. e4 c5 2. Nf3 e6 3. d4 cxd4 4. Nxd4 Nf6 5. Nc3 Nc6 6. Bg5 h6 7. Be3 Bb4 8. Nxc6 bxc6 9. Bd3 d5 10. e5 d4 11. Bd2 Nd7 12. Ne2 Bxd2+ 13. Qxd2 Nxe5 14. O-O O-O 15. Nxd4 c5 16. Nb5 Ba6 17. a4 Bxb5 18. axb5 c4 19. Qe3 cxd3 20. Qxe5 dxc2 21. Qe2 Qc7 22. Rfc1 Rfc8 23. Ra3 Qc4 24. Kf1 Qf4 25. Rxc2 Qxh2 26. Rh3 Qf4 27. Rhc3 Rd8 28. Rc7 Qh2 29. f3 Qh1+ 30. Kf2 Qh4+ 31. Kf1 Qh1+ 32. Kf2 Qh4+ 33. Kf1 Rab8 34. Rxa7 Qh1+ 35. Kf2 Qh4+ 36. Kf1 Qh1+ 37. Kf2 Qh4+ 38. Kf1 Rxb5 39. Rd2 Qh1+ 40. Kf2 Qh4+ 41. Kf1 Rxd2 42. Qxd2 Qh1+ 43. Kf2 Qb1 44. Qd8+ Kh7 45. Rxf7 Rxb2+ 46. Ke3 Qc1+ 47. Ke4 Re2+ 0-1

[Event "45th FIDE Womens Olympiad 2024"]
[Site "Budapest"]
[Date "2024.09.15"]
[Round "5.83"]
[White "Demeter, Dorina"]
[Black "Vasquez Ramirez, Rocio"]
[Result "1-0"]
[ECO "D45"]
[WhiteElo "2199"]
[BlackElo "1981"]
[Annotator "TA"]
[PlyCount "53"]
[EventDate "2024.09.05"]
[EventType "team-tourn"]
[EventCountry "HUN"]
[SourceTitle "playchess.com"]
[Source "ChessBase"]
[SourceQuality "1"]
[WhiteTeam "Hungary B"]
[BlackTeam "Ecuador"]
[WhiteTeamCountry "HUN"]
[BlackTeamCountry "ECU"]
[TimeControl "40/5400+30:1800+30"]

{[%evp 12,53,13,16,57,9,14,0,17,0,66,58,58,59,71,74,123,33,41,50,98,103,106,100,129,147,136,157,288,209,384,289,607,611,622,616,609,586,998,958,1521,1347,1496,1481]} 1. Nf3 Nf6 2. c4 c6 3. d4 d5 4. Nc3 e6 5. e3 Nbd7 6. Qc2 Bb4 7. Bd3 Nb6 8. cxd5 (8. b3 $14) 8... exd5 $11 9. O-O O-O {The position is equal.} 10. Bd2 c5 (10... g6 $11) 11. dxc5 $14 Bxc5 12. Nb5 Qe7 13. Rac1 Nbd7 (13... Ne4 $142) 14. Nfd4 {White is much more active. The black rooks are passive.} (14. Bc3 $16) 14... g6 $1 15. Nb3 Bb6 (15... b6 $1 $14 {might be stronger.}) 16. a3 $36 {[%mdl 2048] White is in control.} a5 {Wards off Bb4} 17. Nc7 Ra7 {[#]} 18. Nd4 $1 Ne5 {[#] ...Nxd3 would now be deadly.} 19. Ndb5 $1 Nfg4 (19... Bd7 $16 20. Nxa7 Bxa7 21. Bxa5 Rc8) 20. h3 (20. Nxa7 Nf3+ 21. gxf3 Qh4 22. fxg4 Qxg4+ 23. Kh1 Qf3+ 24. Kg1 Bh3 $19 (24... Qg4+ $2 25. Kh1 $19) (24... Qg4+ $2 25. Kh1 $19)) 20... Qh4 $2 (20... Nf3+ {was called for.} 21. gxf3 Ne5) 21. Be2 (21. hxg4 Nxg4 22. Rfe1 Qxf2+ 23. Kh1 Qh4+ (23... Nxe3 $2 {too greedy.} 24. Bxe3 Bxe3 25. Qxf2 $18) 24. Kg1 Qh2+ 25. Kf1 Qh1+ 26. Ke2 Qxg2+ 27. Kd1 Nf2+ 28. Ke2 Bg4#) (21. Nxa7 Nf3+ 22. Kh1 (22. gxf3 Qxh3 23. fxg4 Qxg4+ 24. Kh2 Qh4+ 25. Kg1 Bh3) 22... Nxf2+ 23. Rxf2 Qxf2 24. Nxd5 Qg3 (24... Bxh3 $2 25. Ne7+ Kg7 26. Bc3+ Bd4 27. Qxf2 $18) 25. Ne7+ (25. Nxc8 $2 Qh2#) 25... Kg7 26. Bc3+ (26. Naxc8 $2 Qh2#) 26... f6 27. gxf3 (27. Naxc8 $2 Qh2#) 27... Qxh3+ 28. Qh2 Qxf3+ 29. Qg2 Qh5+ 30. Qh2 (30. Kg1 $2 Bxe3+ 31. Kf1 Bh3 $19) 30... Qf3+ 31. Qg2 Qh5+ 32. Qh2 (32. Kg1 $2 Bxe3+ 33. Kf1 Bh3 $19) 32... Qf3+ $11) 21... d4 (21... Nf6 22. Bc3 Bf5) 22. exd4 $18 {White is clearly winning.} ({Weaker is} 22. hxg4 d3 23. Qc3 (23. Bxd3 {gets mated.} Nxg4 24. Rfe1 Qxf2+ 25. Kh1 Qh4+ 26. Kg1 Qh2+ 27. Kf1 Qh1+ 28. Ke2 Qxg2+ 29. Kd1 Nf2+ 30. Ke2 Bg4#) 23... dxe2 24. Qxe5 exf1=Q+ 25. Rxf1 Bxc7 26. Nxc7 b6 $16) 22... Bf5 23. Qd1 Nxf2 24. Rxf2 Bxh3 25. gxh3 Bxd4 26. Nxd4 Qxd4 27. Nb5 {Weighted Error Value: White=0.28 (precise) /Black=0.61.  Mistake:       	White=2     	Black=6      Inaccurate:     	---       	Black=1      OK:         	White=4     	Black=3      Best:        	White=1     	---        Strong:       	White=2     	Black=1} 1-0

[Event "45th FIDE Womens Olympiad 2024"]
[Site "Budapest"]
[Date "2024.09.15"]
[Round "5.84"]
[White "Guerrero Caicedo, Arlette"]
[Black "Terbe, Zsuzsanna"]
[Result "1/2-1/2"]
[ECO "D02"]
[WhiteElo "1868"]
[BlackElo "2168"]
[Annotator "TA"]
[PlyCount "209"]
[EventDate "2024.09.05"]
[EventType "team-tourn"]
[EventCountry "HUN"]
[SourceTitle "playchess.com"]
[Source "ChessBase"]
[SourceQuality "1"]
[WhiteTeam "Ecuador"]
[BlackTeam "Hungary B"]
[WhiteTeamCountry "ECU"]
[BlackTeamCountry "HUN"]
[TimeControl "40/5400+30:1800+30"]

{[%evp 59,209,-194,-204,-196,-131,-210,-231,-203,-80,-92,-84,-116,-75,-75,-89,-102,-102,-97,-74,-89,0,-8,0,-30,-37,-37,-7,-82,0,-11,-14,-14,-14,-14,0,0,0,-678,-556,-486,-486,-473,-281,-408,-408,-422,-288,-279,-193,-193,-193,-193,-193,-193,-114,-115,-115,-115,-115,-115,-115,-139,-139,-139,-139,-139,-139,-139,-139,-139,-115,-115,-105,-105,-120,-120,-8,-8,-8,-8,-8,-8,-8,-8,-8,-8,0,-8,-8,-8,-8,-8,-8,-8,-8,-8,-8,-8,-8,-29960,-8,-8,-8,-8,0,0,0,0,0,-8,-8,-8,-8,-8,-8,-8,-8,-8,-8,-8,-8,-8,-8,-8,0,-29974,-29975,-29974,0,0,0,0,0,0,0,0,0,0,0,0,0,0,0,0,0,0,0,0,0,0,0,0]} 1. d4 d5 2. Nf3 Nf6 3. g3 Bf5 4. c4 e6 5. Nc3 c6 6. Nh4 {D02: 1 d4 d5 2 Nf3 sidelines, including 2...Nf6 3 g3 and 2...Nf6 3 Bf4.} dxc4 7. Nxf5 exf5 8. a4 Bb4 9. Bg2 O-O 10. O-O Nbd7 11. Qc2 g6 $146 ({Predecessor:} 11... Nb6 12. a5 Nbd5 13. Nxd5 cxd5 14. Qxf5 h6 15. a6 b5 16. g4 Re8 17. g5 hxg5 18. Bxg5 Rxe2 {1-0 Goltseva,E (2306)-Sedina,E (2299) EU-ch Online U2300 Final 2020 (3)}) 12. Rd1 Nb6 13. Bg5 Be7 14. Nb1 a5 15. Na3 Nfd5 16. Bxe7 Qxe7 17. Nxc4 Nxc4 18. Qxc4 Rfd8 19. e3 h5 20. Re1 Kg7 21. e4 fxe4 22. Rxe4 Qb4 23. b3 Rd7 24. Re2 Rad8 25. Bxd5 Rxd5 26. Qxb4 axb4 27. Rd1 Rxd4 28. Rxd4 Rxd4 29. Re7 Rd3 30. Rxb7 Rxb3 31. a5 c5 (31... Kf6 $1 $19 {[%cal Rf6e5]} 32. a6 Ke6) 32. a6 (32. Rc7 $17 {was called for.}) 32... Ra3 $19 33. a7 b3 (33... Kf6 $19 {aiming for ...Ke5.} 34. Rc7 Ke5) 34. Rxb3 Rxa7 35. Kg2 c4 36. Rc3 Rc7 37. Kf3 Kf6 38. Ke4 Kg5 $1 39. h3 Kf6 (39... h4 $17 40. Kd4 f5) 40. Kd5 g5 41. Rf3+ Kg6 42. Rc3 Rd7+ 43. Ke4 (43. Kxc4 $11 {remains equal.} Rd6 44. Rf3) 43... f5+ ({Black should try} 43... Re7+ $1 $17 44. Kd4 Rd7+ 45. Kxc4 Kg7) 44. Ke3 Re7+ 45. Kd2 $1 Rc7 46. Ke3 $1 h4 47. gxh4 gxh4 48. f4 $2 {[%mdl 8192]} (48. Kd4 $11) 48... Re7+ $19 49. Kf3 Re4 50. Ra3 Kf6 51. Ra6+ Re6 52. Ra8 Rc6 53. Ke2 c3 54. Kd1 c2+ 55. Kc1 Rc4 56. Ra6+ Ke7 (56... Kg7 $19 {[%cal Oc4c3] And now ...Rc3! would win.} 57. Ra3 Kf7 (57... Rxf4 58. Kxc2 Re4 59. Kd3 $17)) 57. Rh6 $17 Rxf4 58. Kxc2 Kf7 $1 59. Kd2 Kg7 60. Ra6 Rf3 61. Ke2 Rxh3 62. Kf2 Rg3 $1 63. Rb6 Rg6 64. Rb4 Rg4 65. Rb6 h3 66. Rb3 Rh4 $1 67. Kg1 h2+ (67... Kf6 $17) 68. Kh1 $11 Kf6 69. Ra3 Kg5 70. Ra5 Rh6 71. Ra8 Kf4 72. Ra4+ Kg5 73. Ra8 Kg4 74. Rg8+ Kf4 75. Ra8 Rh5 76. Ra4+ Kg5 77. Ra8 Kg4 78. Ra4+ f4 79. Rb4 $2 {[%mdl 8192] [#]} (79. Ra3 $11) 79... Rh8 $2 (79... Re5 $1 80. Kxh2 Re2+ 81. Kg1 Kg3 82. Kf1 Ra2 83. Rb8 Ra1+ 84. Ke2 f3+ 85. Kd3 f2 86. Ke4 Ra4+ (86... f1=B 87. Rb3+ Kh2 88. Kd4 $17) 87. Ke5 f1=Q (87... f1=B 88. Kd5 $11) 88. Rg8+ Rg4 89. Rxg4+ Kxg4 90. Kd4 Qb5 91. Kc3 Qa4 92. Kb2 Kf3 93. Kc3 Ke3 94. Kb2 Kd3 95. Kb1 Kc3 96. Kc1 Qc2#) 80. Ra4 Rh3 81. Ra8 Rb3 82. Rg8+ Kf5 83. Kxh2 Rb2+ 84. Kg1 Ke4 85. Ra8 Re2 86. Kf1 Kf3 87. Ra3+ Re3 88. Ra8 Rb3 89. Kg1 Rb1+ 90. Kh2 Re1 91. Rb8 Kf2 92. Rf8 $2 {[%mdl 8192]} (92. Rb4 $11) 92... f3 93. Rb8 {[#]} Re3 $2 (93... Kf1 $1 {mates} 94. Ra8 f2 95. Rc8 Ke2 96. Re8+ Kd3 97. Rd8+ Ke4 (97... Ke2 {is a self mate.} 98. Re8+ Kd3 99. Rd8+ Ke4 100. Re8+ Kd5 101. Rd8+ Ke6 102. Re8+ Kf7 103. Re3 Rxe3 104. Kg2) 98. Re8+ Kd5 99. Rd8+ Ke6 100. Re8+ Kf7 101. Re3 Rxe3 (101... f1=R {gets mated.} 102. Rd3 Rg1 103. Rd7+ Kg6 104. Rd8 Kh7 105. Rd5 Rg6 106. Rd7+ Kh6 107. Rd5 Re7 108. Kh3 Rh7 109. Rd4 Kg7+ 110. Rh4 Rxh4+ 111. Kxh4 Kh6 112. Kh3 Kh5 113. Kh2 Kh4 114. Kh1 Kg3 115. Kg1 Rf6 116. Kh1 Rf1#) (101... f1=N+ {leads to mate.} 102. Kg2 Nxe3+ 103. Kf3 Nc2 104. Kg3 Kg6 105. Kg4 Rf1 106. Kg3 Ne1 107. Kh3 Kg5 108. Kg3 Kf5 109. Kh3 Kf4 110. Kh2 Kf3 111. Kh3 Rh1#) (101... f1=Q 102. Rf3+ Kg6 103. Rxf1 Rxf1 104. Kg3 Kf5 105. Kg2 Rf4 106. Kh3 Rf3+ 107. Kg2 Kg4 108. Kh2 Rf2+ 109. Kh1 Kh4 110. Kg1 Kg3 111. Kh1 Rf1#) 102. Kg2 Rf3 103. Kxf3 f1=Q+ (103... f1=B 104. Kg4 $11) 104. Ke4 Ke6 105. Kd4 Qd1+ 106. Ke3 Kf5 107. Kf2 Kf4 108. Kg2 Qc2+ 109. Kh3 Qe2 110. Kh4 Qh2#) 94. Rb1 $1 $11 Re2 95. Ra1 Rd2 96. Rb1 Rc2 97. Ra1 Re2 98. Rb1 Re8 99. Rb2+ $1 Ke3 100. Rb3+ Ke2 101. Rb2+ Kf1 102. Kg3 Re2 103. Rb1+ Re1 104. Rxe1+ Kxe1 105. Kxf3 1/2-1/2

[Event "45th FIDE Womens Olympiad 2024"]
[Site "Budapest"]
[Date "2024.09.15"]
[Round "5.85"]
[White "Bulmaga, Irina"]
[Black "Sulyok, Eszter"]
[Result "1-0"]
[ECO "C87"]
[WhiteElo "2406"]
[BlackElo "2080"]
[Annotator "TA"]
[PlyCount "67"]
[EventDate "2024.09.05"]
[EventType "team-tourn"]
[EventCountry "HUN"]
[SourceTitle "playchess.com"]
[Source "ChessBase"]
[SourceQuality "1"]
[WhiteTeam "Romania"]
[BlackTeam "Hungary C"]
[WhiteTeamCountry "ROU"]
[BlackTeamCountry "HUN"]
[TimeControl "40/5400+30:1800+30"]

{[%evp 19,67,33,39,35,57,40,57,49,63,47,57,42,53,50,77,44,56,52,45,51,58,34,83,64,148,35,172,171,235,210,227,228,227,210,208,202,207,210,201,197,217,204,351,350,555,561,590,593,638,636]} 1. e4 e5 2. Nf3 Nc6 3. Bb5 a6 4. Ba4 Nf6 5. d3 d6 6. c3 Be7 7. O-O O-O 8. Re1 Bg4 {[%cal Bc8g4,Bg4h5,Bh5g6][%mdl 32]} 9. Nbd2 {[%cal Bb1d2,Bd2f1,Bf1g3][%mdl 32]} Nd7 10. h3 Bh5 11. Nf1 b5 {[%cal Oh5f3] Hoping for ...Bxf3!} 12. Bc2 {[%cal Ba4c2,Bc2b3,Bb3a2][%mdl 32]} Nb6 13. Ng3 {White is slightly better.} Bg6 14. Qe2 Qc8 15. a3 Bf6 16. Be3 Rd8 17. Bb3 Na5 18. Ba2 c5 19. b4 Nb7 20. c4 Qc6 (20... bxc4 $14 {deserves consideration.} 21. dxc4 Be7) 21. Nd2 bxc4 (21... Qd7 $14) 22. dxc4 ({White must play} 22. Nxc4 $16 Nxc4 23. Bxc4 (23. dxc4 Qd7 $16)) 22... cxb4 {Loses the game.} ({Black should try} 22... Rdb8 $14) 23. axb4 $18 a5 {[#]} (23... Nc8 {keeps fighting.} 24. c5 dxc5) 24. c5 $1 {[%mdl 512]} dxc5 25. bxc5 Nxc5 26. Rac1 Qa4 {[#]} 27. Nc4 $1 ({Stronger than} 27. Bxc5 Qxa2 28. Bxb6 Rxd2 $17) 27... Nbd7 {[#]} ({Wrong is} 27... Nxc4 $2 28. Rxc4 Qe8 29. Rxc5 $18) 28. Bxc5 Nxc5 29. Nb6 $1 {[%csl LRa4,LRa8,LRc5] A dynamic duo of knights.} Qa3 30. Nxa8 Nd3 (30... Rxa8 $142 31. Bd5 Rd8) 31. Ra1 {[%cal Oa2f7] Bxf7+! is the strong threat.} Qc3 (31... Qf8 {was necessary.} 32. Nb6 Nxe1 33. Rxe1 Be7) 32. Red1 {White is clearly winning.} Bh4 33. Qe3 Qb2 34. Bc4 {Weighted Error Value: White=0.14 (very precise) /Black=0.43.  Mistake:       	White=1     	Black=6      Inaccurate:     	White=1     	Black=1      OK:         	White=7     	Black=8      Best:        	White=2     	---        Strong:       	White=1     	---        Brilliant:      	White=1     	---} 1-0

[Event "45th FIDE Womens Olympiad 2024"]
[Site "Budapest"]
[Date "2024.09.15"]
[Round "5.86"]
[White "Toth, Lili"]
[Black "Sandu, Mihaela"]
[Result "0-1"]
[ECO "C54"]
[WhiteElo "2105"]
[BlackElo "2248"]
[Annotator "TA"]
[PlyCount "52"]
[EventDate "2024.09.05"]
[EventType "team-tourn"]
[EventCountry "HUN"]
[SourceTitle "playchess.com"]
[Source "ChessBase"]
[SourceQuality "1"]
[WhiteTeam "Hungary C"]
[BlackTeam "Romania"]
[WhiteTeamCountry "HUN"]
[BlackTeamCountry "ROU"]
[TimeControl "40/5400+30:1800+30"]

{[%evp 14,52,18,8,13,6,23,14,50,0,0,-10,0,0,0,0,20,-183,-183,-210,-210,-215,-216,-217,-212,-199,-161,-337,-316,-353,-164,-520,-514,-865,-862,-889,-885,-1570,-843,-1406,-1398]} 1. e4 e5 2. Nf3 Nc6 3. Bc4 Bc5 4. O-O Nf6 5. d3 d6 6. c3 a6 7. Bb3 Ba7 8. Re1 h6 9. Nbd2 Be6 10. Nf1 Qd7 {The position is equal.} 11. d4 (11. Bc2 $14) 11... Bxb3 12. axb3 O-O 13. Ng3 exd4 14. cxd4 Bb6 {[#]} 15. Bxh6 $2 {White does not recover from this.} gxh6 $19 16. Nf5 {[%cal Od1d2]} Kh7 {[%cal Of6e4]} 17. Qd2 Ng8 18. Ng5+ Kh8 ({Inferior is} 18... hxg5 19. Qxg5 f6 20. Qh5+) 19. Nf3 Qd8 20. e5 $2 {[#]} (20. Nxh6 Qf6 21. Nf5) 20... dxe5 21. d5 Qf6 (21... Nd4 $142 22. N5xd4 exd4) 22. Ng3 (22. dxc6 {was the crucial defense.} Qxf5 23. Rxe5) 22... Nd4 {Black is clearly winning.} 23. Nxe5 (23. Nxd4 $142 exd4 (23... Bxd4 $2 24. Rac1 $19) 24. Nh5) 23... Nxb3 24. Qc3 Nxa1 25. Nh5 Qxf2+ 26. Kh1 Bd4 {Weighted Error Value: White=1.10/Black=0.53.  Loses game:     	White=1     	---        Mistake:       	White=4     	Black=1      Inaccurate:     	---       	Black=1      OK:         	White=4     	Black=4      Best:        	---       	Black=2} 0-1